Workbook

Sheet Dashboard
B1: HUMAN RESOURCES
Z3: Accounting
Z4: Administration
Z5: Customer Support
Z6: Finance
Z7: Human Resources
Z8: IT
Z9: Sales
V30: 82
L35: Employee | N35: =INDEX('Employee Data'!A3:A98,Dashboard!V30) -> Ryan Kennedy
L36: Department | N36: =VLOOKUP($N$35,'Employee Data'!$A$3:$H$98,6,FALSE) -> Customer Support
L37: Hire Date | N37: =VLOOKUP($N$35,'Employee Data'!$A$3:$H$98,2,FALSE) -> 2001-12-24
L38: Salary | N38: =VLOOKUP($N$35,'Employee Data'!$A$3:$H$98,3,FALSE) -> $81,000
L39: Bonus | N39: =VLOOKUP($N$35,'Employee Data'!$A$3:$H$98,4,FALSE) -> $4,860
L40: Overtime | N40: =VLOOKUP($N$35,'Employee Data'!$A$3:$H$98,5,FALSE) -> $0
L41: Sick Days | N41: =VLOOKUP($N$35,'Employee Data'!$A$3:$H$98,7,FALSE) -> 4
L42: Performance Score | N42: =VLOOKUP($N$35,'Employee Data'!$A$3:$H$98,8,FALSE) -> 2

Sheet Readme
D3: Follow the steps to enable your online Human Resources Dashboard.
C4: 1) | D4: This is a HR Dashboard for a sample data. You can enter your data in "Employee Data" sheet.
C5: 2) | D5: Your HR Dashboard is ready to use. Further steps for online use. First visit the site below:
D6: http://www.spreadsheetweb.com/getting_started.htm
D7: Ignore the downloaded software, you will only need the username and password.
C8: 3) | D8: Visit the site below and login with your new account:
D9: https://www4.spreadsheetweb.com/SpreadsheetWEB//
C10: 4) | D10: Click "Add Web Application" to upload this file. Your dashboard will be created automatically.
D11: You can simply use the dashboard from that link or place it on your website.
C12: >> | D12: Your online tracker will look like:
D13: https://www4.spreadsheetweb.com/SpreadSheetWEB/Output.aspx?ApplicationId=8f797910-faec-4989-af55-77228d02fe4e
C14: >> | D14: Using your account, you can upload more Excel applications to the web. You can see tutorials in the link below:
D15: http://www.spreadsheetweb.com/tutorials.htm
C16: >> | D16: In order to see more online applications created with PSW you can check the link below:
D17: http://www.spreadsheetweb.com/demos.htm
D20: Copyright (c) 2009 Pagos, Inc., http://www.pagos.com/

Sheet Employee Data
A2: Full Name | B2: Hire Date | C2: Salary | D2: Bonus | E2: Overtime | F2: Department | G2: Sick Days | H2: Performance Score
A3: Rose Moreno | B3: 2007-05-09 | C3: $16,000 | D3: $2,080 | E3: $160 | F3: Finance | G3: 3 | H3: 4
A4: Richard Garza | B4: 2003-01-16 | C4: $25,000 | D4: $750 | E4: $750 | F4: Administration | G4: 8 | H4: 1
A5: Christopher Battah | B5: 2008-05-13 | C5: $25,000 | D5: $1,500 | E5: $750 | F5: Human Resources | G5: 6 | H5: 2
A6: Margaret Pavlovich | B6: 2007-07-20 | C6: $26,000 | D6: $3,380 | E6: $780 | F6: Finance | G6: 8 | H6: 4
A7: Johnathan A Wilhite | B7: 2004-06-08 | C7: $27,000 | D7: $810 | E7: $2,160 | F7: Marketing | G7: 9 | H7: 1
A8: Saif Perrine | B8: 2006-03-01 | C8: $27,000 | D8: $4,500 | E8: $0 | F8: Marketing | G8: 7 | H8: 5
A9: Janalee Eggleston | B9: 2001-10-21 | C9: $28,000 | D9: $4,200 | E9: $0 | F9: R&D | G9: 6 | H9: 5
A10: Eric W. Kilbride | B10: 2005-09-25 | C10: $28,000 | D10: $3,640 | E10: $1,400 | F10: Administration | G10: 7 | H10: 4
A11: Matthew Tait | B11: 2002-02-16 | C11: $30,000 | D11: $3,300 | E11: $3,000 | F11: Customer Support | G11: 4 | H11: 4
A12: Shireen Battah | B12: 2003-04-30 | C12: $30,000 | D12: $1,800 | E12: $1,800 | F12: Accounting | G12: 1 | H12: 2
A13: Joshua Daniel | B13: 2003-03-22 | C13: $31,000 | D13: $2,790 | E13: $310 | F13: Administration | G13: 4 | H13: 3
A14: Roshan Coon | B14: 2007-05-01 | C14: $31,000 | D14: $1,240 | E14: $930 | F14: Human Resources | G14: 2 | H14: 1
A15: Joeanne Melendez | B15: 2001-05-04 | C15: $32,000 | D15: $2,240 | E15: $0 | F15: R&D | G15: 9 | H15: 2
A16: Ricardo Bergman | B16: 2007-10-26 | C16: $32,000 | D16: $4,160 | E16: $640 | F16: R&D | G16: 8 | H16: 4
A17: Willow Nevandro | B17: 2000-10-18 | C17: $34,000 | D17: $4,420 | E17: $2,040 | F17: Administration | G17: 8 | H17: 4
A18: Donna K. Bulgar | B18: 2007-08-23 | C18: $34,000 | D18: $4,080 | E18: $3,060 | F18: IT | G18: 5 | H18: 4
A19: Kelley Reneau | B19: 2006-01-09 | C19: $35,000 | D19: $1,750 | E19: $1,050 | F19: Accounting | G19: 7 | H19: 2
A20: Sara Webb | B20: 2007-10-09 | C20: $35,000 | D20: $3,500 | E20: $2,100 | F20: R&D | G20: 8 | H20: 3
A21: Genevieve Knapp | B21: 2006-04-02 | C21: $35,000 | D21: $26,000 | E21: $0 | F21: Sales | G21: 1 | H21: 3
A22: Ian Helmer | B22: 2008-12-13 | C22: $36,000 | D22: $2,520 | E22: $1,800 | F22: Marketing | G22: 1 | H22: 2
A23: Tiffany M Blake | B23: 2008-04-28 | C23: $38,000 | D23: $1,900 | E23: $0 | F23: IT | G23: 4 | H23: 2
A24: Saxton Peterson | B24: 2008-03-15 | C24: $39,000 | D24: $780 | E24: $390 | F24: Marketing | G24: 9 | H24: 1
A25: Melissa Torruella | B25: 2005-10-19 | C25: $40,000 | D25: $5,600 | E25: $0 | F25: Customer Support | G25: 7 | H25: 5
A26: Yvette Hurtado | B26: 2003-12-14 | C26: $40,000 | D26: $1,600 | E26: $1,600 | F26: Finance | G26: 6 | H26: 1
A27: Benny Melendez | B27: 2008-09-28 | C27: $41,000 | D27: $2,050 | E27: $1,640 | F27: Human Resources | G27: 9 | H27: 2
A28: Steven Bolin | B28: 2002-02-02 | C28: $42,000 | D28: $2,520 | E28: $3,780 | F28: Accounting | G28: 9 | H28: 2
A29: Brian M Stucki | B29: 2001-05-10 | C29: $43,000 | D29: $4,730 | E29: $0 | F29: Sales | G29: 7 | H29: 4
A30: Kelly Queen | B30: 2001-01-13 | C30: $43,000 | D30: $42,000 | E30: $0 | F30: Sales | G30: 5 | H30: 5
A31: Jacqueline N. Hildebrand | B31: 2006-08-11 | C31: $44,000 | D31: $1,320 | E31: $880 | F31: Finance | G31: 6 | H31: 1
A32: Julia Hegwood | B32: 2000-08-24 | C32: $45,000 | D32: $37,000 | E32: $0 | F32: Sales | G32: 9 | H32: 4
A33: William Melendez | B33: 2004-05-24 | C33: $45,000 | D33: $5,850 | E33: $4,500 | F33: Administration | G33: 4 | H33: 4
A34: Heela Kraft | B34: 2008-12-08 | C34: $45,000 | D34: $900 | E34: $0 | F34: IT | G34: 7 | H34: 1
A35: Matthew W Yamaguchi | B35: 2005-05-20 | C35: $46,000 | D35: $2,300 | E35: $0 | F35: Sales | G35: 3 | H35: 2
A36: Manuel Steele | B36: 2002-07-05 | C36: $47,000 | D36: $2,820 | E36: $470 | F36: Human Resources | G36: 7 | H36: 2
A37: James Wilson | B37: 2002-01-03 | C37: $48,000 | D37: $5,760 | E37: $4,800 | F37: Accounting | G37: 7 | H37: 4
A38: Bryan Brier | B38: 2004-08-01 | C38: $48,000 | D38: $3,840 | E38: $4,320 | F38: Finance | G38: 8 | H38: 3
A39: Rebecca L. Haight | B39: 2005-02-14 | C39: $48,000 | D39: $6,720 | E39: $2,400 | F39: Accounting | G39: 4 | H39: 5
A40: Rikkie J Mahone | B40: 2003-11-27 | C40: $48,000 | D40: $6,240 | E40: $480 | F40: Marketing | G40: 6 | H40: 4
A41: Grant Tomasevic | B41: 2008-01-29 | C41: $48,000 | D41: $4,800 | E41: $3,360 | F41: R&D | G41: 7 | H41: 3
A42: Alicia A. Elmasian | B42: 2008-01-25 | C42: $51,000 | D42: $6,630 | E42: $2,040 | F42: Human Resources | G42: 9 | H42: 4
A43: Natalie H. Woodford | B43: 2005-12-21 | C43: $52,000 | D43: $1,560 | E43: $3,640 | F43: R&D | G43: 11 | H43: 1
A44: Jena Coon | B44: 2007-06-28 | C44: $53,000 | D44: $35,000 | E44: $0 | F44: Sales | G44: 3 | H44: 3
A45: Ernest Trent | B45: 2007-06-25 | C45: $53,000 | D45: $5,300 | E45: $530 | F45: Marketing | G45: 3 | H45: 3
A46: Martie Elmasian | B46: 2000-12-07 | C46: $54,000 | D46: $5,400 | E46: $3,780 | F46: Administration | G46: 7 | H46: 3
A47: Cristhian Roth | B47: 2001-04-02 | C47: $54,000 | D47: $1,620 | E47: $4,320 | F47: Administration | G47: 8 | H47: 1
A48: Rebecca Negrete | B48: 2004-04-27 | C48: $54,000 | D48: $5,400 | E48: $4,860 | F48: Accounting | G48: 6 | H48: 3
A49: Michelle Shevlin | B49: 2006-02-28 | C49: $54,000 | D49: $8,100 | E49: $1,620 | F49: R&D | G49: 9 | H49: 5
A50: Micah Chokeir | B50: 2001-12-21 | C50: $55,000 | D50: $1,100 | E50: $0 | F50: IT | G50: 9 | H50: 1
A51: Julie Yost | B51: 2003-11-07 | C51: $57,000 | D51: $3,990 | E51: $570 | F51: Finance | G51: 8 | H51: 2
A52: Jonathan C. Parnell | B52: 2003-12-04 | C52: $57,000 | D52: $5,130 | E52: $3,420 | F52: Marketing | G52: 6 | H52: 3
A53: Jeremiah De Grazia | B53: 2000-09-08 | C53: $58,000 | D53: $5,220 | E53: $5,220 | F53: Finance | G53: 5 | H53: 3
A54: Stacy L Chen | B54: 2001-11-23 | C54: $59,000 | D54: $8,850 | E54: $0 | F54: Human Resources | G54: 3 | H54: 5
A55: Elena Miriam Hillen | B55: 2001-10-22 | C55: $59,000 | D55: $5,900 | E55: $0 | F55: IT | G55: 7 | H55: 3
A56: Natalie H. Zeidell | B56: 2001-10-24 | C56: $59,000 | D56: $5,310 | E56: $590 | F56: IT | G56: 7 | H56: 3
A57: Alyssa Adefioye | B57: 2007-02-11 | C57: $59,000 | D57: $7,080 | E57: $1,180 | F57: Customer Support | G57: 5 | H57: 4
A58: Kevin Nevandro | B58: 2007-08-07 | C58: $60,000 | D58: $8,400 | E58: $0 | F58: Sales | G58: 8 | H58: 5
A59: Cassandra Perry | B59: 2004-06-07 | C59: $62,000 | D59: $8,060 | E59: $3,100 | F59: R&D | G59: 9 | H59: 4
A60: Krisaundra Hightower | B60: 2005-05-05 | C60: $62,000 | D60: $8,060 | E60: $1,240 | F60: Finance | G60: 6 | H60: 4
A61: Cindy Summerville | B61: 2001-06-23 | C61: $63,000 | D61: $7,560 | E61: $4,410 | F61: IT | G61: 9 | H61: 4
A62: Erik G. Rinehart | B62: 2003-11-04 | C62: $63,000 | D62: $7,560 | E62: $0 | F62: IT | G62: 4 | H62: 4
A63: Ahlam Aby | B63: 2008-07-09 | C63: $63,000 | D63: $3,150 | E63: $3,780 | F63: Accounting | G63: 3 | H63: 2
A64: Alexis Ripley | B64: 2001-12-03 | C64: $64,000 | D64: $2,560 | E64: $0 | F64: Administration | G64: 3 | H64: 1
A65: Michelle Greenwell | B65: 2003-10-27 | C65: $64,000 | D65: $8,320 | E65: $5,120 | F65: Administration | G65: 6 | H65: 4
A66: Ricardo Sherrell | B66: 2007-11-21 | C66: $64,000 | D66: $5,760 | E66: $0 | F66: IT | G66: 4 | H66: 3
A67: Matthew H. Rios | B67: 2007-09-17 | C67: $65,000 | D67: $3,900 | E67: $0 | F67: Marketing | G67: 4 | H67: 2
A68: Laura S Greenwell | B68: 2006-04-17 | C68: $65,000 | D68: $1,300 | E68: $1,300 | F68: Human Resources | G68: 4 | H68: 1
A69: Bryan Anderson | B69: 2001-10-06 | C69: $66,000 | D69: $2,640 | E69: $1,320 | F69: Accounting | G69: 9 | H69: 1
A70: Marylou M. Diaz | B70: 2007-04-16 | C70: $66,000 | D70: $1,320 | E70: $1,980 | F70: Marketing | G70: 1 | H70: 1
A71: Joshua Fields | B71: 2007-11-14 | C71: $67,000 | D71: $41,000 | E71: $0 | F71: Sales | G71: 8 | H71: 3
A72: Stephen H. Thomas | B72: 2006-12-22 | C72: $67,000 | D72: $8,040 | E72: $3,350 | F72: Finance | G72: 8 | H72: 4
A73: Jacqueline N. Gappy | B73: 2003-05-29 | C73: $68,000 | D73: $8,840 | E73: $5,440 | F73: Human Resources | G73: 4 | H73: 4
A74: Corine M. Henderson | B74: 2000-08-07 | C74: $72,000 | D74: $2,880 | E74: $6,480 | F74: R&D | G74: 15 | H74: 1
A75: Laura Aguirre | B75: 2005-08-04 | C75: $72,000 | D75: $2,160 | E75: $2,880 | F75: Accounting | G75: 7 | H75: 1
A76: Rosa I. Peralta | B76: 2004-11-19 | C76: $73,000 | D76: $1,460 | E76: $5,110 | F76: IT | G76: 8 | H76: 1
A77: Harman Abraha | B77: 2003-07-21 | C77: $74,000 | D77: $8,140 | E77: $2,220 | F77: Accounting | G77: 9 | H77: 4
A78: Jesse Wooten | B78: 2001-12-21 | C78: $75,000 | D78: $9,750 | E78: $1,500 | F78: Administration | G78: 6 | H78: 4
A79: Elena Miriam Woodburn | B79: 2005-03-09 | C79: $76,000 | D79: $7,600 | E79: $2,280 | F79: R&D | G79: 9 | H79: 3
A80: Gabriel R. Self | B80: 2002-02-08 | C80: $77,000 | D80: $11,550 | E80: $0 | F80: IT | G80: 2 | H80: 5
A81: Micah Talia | B81: 2004-11-22 | C81: $77,000 | D81: $5,390 | E81: $0 | F81: R&D | G81: 14 | H81: 2
A82: Benny Erwin | B82: 2003-12-03 | C82: $77,000 | D82: $28,000 | E82: $0 | F82: Sales | G82: 5 | H82: 3
A83: James Oberndorfer | B83: 2008-04-26 | C83: $80,000 | D83: $52,000 | E83: $0 | F83: Sales | G83: 6 | H83: 4
A84: Ryan Kennedy | B84: 2001-12-24 | C84: $81,000 | D84: $4,860 | E84: $0 | F84: Customer Support | G84: 4 | H84: 2
A85: Julie Harken | B85: 2003-12-04 | C85: $83,000 | D85: $32,000 | E85: $0 | F85: Sales | G85: 4 | H85: 2
A86: Tamara Pacheco | B86: 2005-03-25 | C86: $85,000 | D86: $1,700 | E86: $0 | F86: IT | G86: 6 | H86: 1
A87: Ann Sharp | B87: 2006-02-02 | C87: $85,000 | D87: $9,350 | E87: $0 | F87: IT | G87: 9 | H87: 4
A88: Elena Miriam Takahashi | B88: 2006-05-06 | C88: $85,000 | D88: $9,350 | E88: $0 | F88: IT | G88: 7 | H88: 4
A89: Katherine Battah | B89: 2005-03-04 | C89: $87,000 | D89: $7,830 | E89: $7,830 | F89: Customer Support | G89: 1 | H89: 3
A90: John Michael | B90: 2007-03-19 | C90: $87,000 | D90: $13,050 | E90: $6,960 | F90: Marketing | G90: 6 | H90: 5
A91: Alison Johnson | B91: 2000-05-13 | C91: $89,000 | D91: $8,010 | E91: $0 | F91: Marketing | G91: 2 | H91: 3
A92: Jessica Rodriguez | B92: 2008-03-01 | C92: $94,000 | D92: $5,640 | E92: $0 | F92: Human Resources | G92: 6 | H92: 2
A93: Joshua Johnson | B93: 2006-09-02 | C93: $96,000 | D93: $4,800 | E93: $7,680 | F93: Finance | G93: 8 | H93: 2
A94: Tony Merrick | B94: 2001-09-18 | C94: $105,000 | D94: $15,750 | E94: $0 | F94: R&D | G94: 8 | H94: 5
A95: Ernest Talia | B95: 2008-09-15 | C95: $110,000 | D95: $6,600 | E95: $5,500 | F95: Administration | G95: 4 | H95: 2
A96: Moriel Caldwell | B96: 2006-11-16 | C96: $119,000 | D96: $10,710 | E96: $4,760 | F96: R&D | G96: 4 | H96: 3
A97: Ryan Mesko | B97: 2003-10-18 | C97: $123,000 | D97: $17,220 | E97: $4,920 | F97: Administration | G97: 7 | H97: 5
A98: Brian Tomasevic | B98: 2008-10-30 | C98: $145,000 | D98: $15,950 | E98: $5,800 | F98: Administration | G98: 6 | H98: 4

Sheet Calculations
B2: Year | C2: Employee | I2: Salary Range | J2: Employee Count
A3: 2000-12-31 | B3: 2000 | C3: =COUNTIF('Employee Data'!$B$3:$B$98,"<"&A3) -> 6 | F3: 0 | G3: 30000 | H3: =COUNTIF('Employee Data'!$C$3:$C$98,"<"&G3) -> 8 | I3: <$30,000 | J3: =H3 -> 8
A4: 2001-12-31 | B4: 2001 | C4: =COUNTIF('Employee Data'!$B$3:$B$98,"<"&A4) -> 21 | F4: 30000 | G4: 40000 | H4: =COUNTIF('Employee Data'!$C$3:$C$98,"<"&G4) -> 22 | I4: $30,000-$40,000 | J4: =H4-H3 -> 14
A5: 2002-12-31 | B5: 2002 | C5: =COUNTIF('Employee Data'!$B$3:$B$98,"<"&A5) -> 26 | F5: 40000 | G5: 50000 | H5: =COUNTIF('Employee Data'!$C$3:$C$98,"<"&G5) -> 39 | I5: $40,000-$50,000 | J5: =H5-H4 -> 17
A6: 2003-12-31 | B6: 2003 | C6: =COUNTIF('Employee Data'!$B$3:$B$98,"<"&A6) -> 40 | F6: 50000 | G6: 60000 | H6: =COUNTIF('Employee Data'!$C$3:$C$98,"<"&G6) -> 55 | I6: $50,000-$60,000 | J6: 16
A7: 2004-12-31 | B7: 2004 | C7: =COUNTIF('Employee Data'!$B$3:$B$98,"<"&A7) -> 47 | F7: 60000 | G7: 70000 | H7: =COUNTIF('Employee Data'!$C$3:$C$98,"<"&G7) -> 71 | I7: $60,000-$70,000 | J7: 16
A8: 2005-12-31 | B8: 2005 | C8: =COUNTIF('Employee Data'!$B$3:$B$98,"<"&A8) -> 57 | F8: 70000 | G8: 80000 | H8: =COUNTIF('Employee Data'!$C$3:$C$98,"<"&G8) -> 80 | I8: $70,000-$80,000 | J8: 9
A9: 2006-12-31 | B9: 2006 | C9: =COUNTIF('Employee Data'!$B$3:$B$98,"<"&A9) -> 68 | F9: 80000 | G9: 90000 | H9: =COUNTIF('Employee Data'!$C$3:$C$98,"<"&G9) -> 89 | I9: $80,000-$90,000 | J9: 9
A10: 2007-12-31 | B10: 2007 | C10: =COUNTIF('Employee Data'!$B$3:$B$98,"<"&A10) -> 83 | F10: 90000 | G10: 100000 | H10: =COUNTIF('Employee Data'!$C$3:$C$98,"<"&G10) -> 91 | I10: $90,000-$100,000 | J10: 2
A11: 2008-12-31 | B11: 2008 | C11: =COUNTIF('Employee Data'!$B$3:$B$98,"<"&A11) -> 96 | F11: 100000 | G11: 200000 | H11: =COUNTIF('Employee Data'!$C$3:$C$98,"<"&G11) -> 96 | I11: >$100,000 | J11: 5
A14: Department | B14: Salary | C14: Bonus | D14: Overtime | E14: Total | F14: Number of Employees | G14: Average Salary | H14: Total Sick Days | I14: Average Sick Days
A15: Accounting | B15: =SUMIF('Employee Data'!$F$3:$F$98,$A15,'Employee Data'!C$3:C$98) -> $532,000 | C15: =SUMIF('Employee Data'!$F$3:$F$98,$A15,'Employee Data'!D$3:D$98) -> $40,040 | D15: =SUMIF('Employee Data'!$F$3:$F$98,$A15,'Employee Data'!E$3:E$98) -> $28,890 | E15: =SUM(B15:D15) -> $600,930 | F15: =COUNTIF('Employee Data'!$F$3:$F$98,"="&A15) -> 10 | G15: =ROUND(B15/F15,0) -> $53,200 | H15: =SUMIF('Employee Data'!$F$3:$F$98,A15,'Employee Data'!$G$3:$G$98) -> 62 | I15: =ROUND(H15/F15,1) -> 6.2
A16: Administration | B16: =SUMIF('Employee Data'!$F$3:$F$98,$A16,'Employee Data'!$C$3:$C$98) -> $852,000 | C16: =SUMIF('Employee Data'!$F$3:$F$98,$A16,'Employee Data'!D$3:D$98) -> $84,870 | D16: =SUMIF('Employee Data'!$F$3:$F$98,$A16,'Employee Data'!E$3:E$98) -> $39,940 | E16: =SUM(B16:D16) -> $976,810 | F16: =COUNTIF('Employee Data'!$F$3:$F$98,"="&A16) -> 13 | G16: $65,538 | H16: =SUMIF('Employee Data'!$F$3:$F$98,A16,'Employee Data'!$G$3:$G$98) -> 78 | I16: =ROUND(H16/F16,1) -> 6
A17: Customer Support | B17: =SUMIF('Employee Data'!$F$3:$F$98,$A17,'Employee Data'!$C$3:$C$98) -> $297,000 | C17: =SUMIF('Employee Data'!$F$3:$F$98,$A17,'Employee Data'!D$3:D$98) -> $28,670 | D17: =SUMIF('Employee Data'!$F$3:$F$98,$A17,'Employee Data'!E$3:E$98) -> $12,010 | E17: $337,680 | F17: =COUNTIF('Employee Data'!$F$3:$F$98,"="&A17) -> 5 | G17: $59,400 | H17: =SUMIF('Employee Data'!$F$3:$F$98,A17,'Employee Data'!$G$3:$G$98) -> 21 | I17: 4.2
A18: Finance | B18: =SUMIF('Employee Data'!$F$3:$F$98,$A18,'Employee Data'!$C$3:$C$98) -> $514,000 | C18: =SUMIF('Employee Data'!$F$3:$F$98,$A18,'Employee Data'!D$3:D$98) -> $42,330 | D18: =SUMIF('Employee Data'!$F$3:$F$98,$A18,'Employee Data'!E$3:E$98) -> $25,800 | E18: $582,130 | F18: =COUNTIF('Employee Data'!$F$3:$F$98,"="&A18) -> 10 | G18: $51,400 | H18: =SUMIF('Employee Data'!$F$3:$F$98,A18,'Employee Data'!$G$3:$G$98) -> 66 | I18: 6.6
A19: Human Resources | B19: =SUMIF('Employee Data'!$F$3:$F$98,$A19,'Employee Data'!$C$3:$C$98) -> $481,000 | C19: =SUMIF('Employee Data'!$F$3:$F$98,$A19,'Employee Data'!D$3:D$98) -> $38,870 | D19: =SUMIF('Employee Data'!$F$3:$F$98,$A19,'Employee Data'!E$3:E$98) -> $12,570 | E19: $532,440 | F19: =COUNTIF('Employee Data'!$F$3:$F$98,"="&A19) -> 9 | G19: $53,444 | H19: =SUMIF('Employee Data'!$F$3:$F$98,A19,'Employee Data'!$G$3:$G$98) -> 50 | I19: 5.6
A20: IT | B20: =SUMIF('Employee Data'!$F$3:$F$98,$A20,'Employee Data'!$C$3:$C$98) -> $885,000 | C20: =SUMIF('Employee Data'!$F$3:$F$98,$A20,'Employee Data'!D$3:D$98) -> $73,480 | D20: =SUMIF('Employee Data'!$F$3:$F$98,$A20,'Employee Data'!E$3:E$98) -> $13,170 | E20: $971,650 | F20: =COUNTIF('Employee Data'!$F$3:$F$98,"="&A20) -> 14 | G20: $63,214 | H20: =SUMIF('Employee Data'!$F$3:$F$98,A20,'Employee Data'!$G$3:$G$98) -> 88 | I20: 6.3
A21: Marketing | B21: =SUMIF('Employee Data'!$F$3:$F$98,$A21,'Employee Data'!$C$3:$C$98) -> $594,000 | C21: =SUMIF('Employee Data'!$F$3:$F$98,$A21,'Employee Data'!D$3:D$98) -> $51,560 | D21: =SUMIF('Employee Data'!$F$3:$F$98,$A21,'Employee Data'!E$3:E$98) -> $17,720 | E21: $663,280 | F21: =COUNTIF('Employee Data'!$F$3:$F$98,"="&A21) -> 11 | G21: $54,000 | H21: =SUMIF('Employee Data'!$F$3:$F$98,A21,'Employee Data'!$G$3:$G$98) -> 54 | I21: 4.9
A22: R&D | B22: =SUMIF('Employee Data'!$F$3:$F$98,$A22,'Employee Data'!$C$3:$C$98) -> $792,000 | C22: =SUMIF('Employee Data'!$F$3:$F$98,$A22,'Employee Data'!D$3:D$98) -> $78,950 | D22: =SUMIF('Employee Data'!$F$3:$F$98,$A22,'Employee Data'!E$3:E$98) -> $27,980 | E22: $898,930 | F22: =COUNTIF('Employee Data'!$F$3:$F$98,"="&A22) -> 13 | G22: $60,923 | H22: =SUMIF('Employee Data'!$F$3:$F$98,A22,'Employee Data'!$G$3:$G$98) -> 117 | I22: 9
A23: Sales | B23: =SUMIF('Employee Data'!$F$3:$F$98,$A23,'Employee Data'!$C$3:$C$98) -> $632,000 | C23: =SUMIF('Employee Data'!$F$3:$F$98,$A23,'Employee Data'!D$3:D$98) -> $308,430 | D23: =SUMIF('Employee Data'!$F$3:$F$98,$A23,'Employee Data'!E$3:E$98) -> $0 | E23: $940,430 | F23: =COUNTIF('Employee Data'!$F$3:$F$98,"="&A23) -> 11 | G23: $57,455 | H23: =SUMIF('Employee Data'!$F$3:$F$98,A23,'Employee Data'!$G$3:$G$98) -> 59 | I23: 5.4

Sheet PSW_Sheet (hidden)
A1: %3c%3fxml+version%3d%221.0%22+encoding%3d%22utf-16%22%3f%3e%0d%0a%3cPageInputCells+xmlns%3axsi%3d%22http%3a%2f%2fwww.w3.org%2f2001%2fXMLSchema-instance%22+xmlns%3axsd%3d%22http%3a%2f%2fwww.w3.org%2f2001%2fXMLSchema%22%3e%0d%0a++%3cInputCells+InputPrefix%3d%22PSWInput_%22+ListPrefix%3d%22PSWList_%22+CellCount%3d%220%22+%2f%3e%0d%0a++%3cInputCells+InputPrefix%3d%22PSWInput_%22+ListPrefix%3d%22PSWList_%22+CellCount%3d%220%22+%2f%3e%0d%0a++%3cInputCells+InputPrefix%3d%22PSWInput_%22+ListPrefix%3d%22PSWList_%22+CellCount%3d%220%22+%2f%3e%0d%0a++%3cInputCells+InputPrefix%3d%22PSWInput_%22+ListPrefix%3d%22PSWList_%22+CellCount%3d%220%22+%2f%3e%0d%0a++%3cInputCells+InputPrefix%3d%22PSWInput_%22+ListPrefix%3d%22PSWList_%22+CellCount%3d%220%22+%2f%3e%0d%0a++%3cInputCells+InputPrefix%3d%22PSWInput_%22+ListPrefix%3d%22PSWList_%22+CellCount%3d%220%22+%2f%3e%0d%0a++%3cInputCells+InputPrefix%3d%22PSWInput_%22+ListPrefix%3d%22PSWList_%22+CellCount%3d%220%22+%2f%3e%0d%0a%3c%2fPageInputCells%3e
A3: %3c%3fxml+version%3d%221.0%22+encoding%3d%22utf-16%22%3f%3e%0d%0a%3cPageLayouts+xmlns%3axsi%3d%22http%3a%2f%2fwww.w3.org%2f2001%2fXMLSchema-instance%22+xmlns%3axsd%3d%22http%3a%2f%2fwww.w3.org%2f2001%2fXMLSchema%22+IsTabsVisible%3d%22true%22+InitialPageIndex%3d%220%22%3e%0d%0a++%3cPageLayout+Index%3d%220%22+IsPageHidingEnabled%3d%22false%22+Order%3d%220%22+FileName%3d%221.+Dashboard%22+IsAjaxEnabled%3d%22true%22+Recipient%3d%22Enter+e-mail+address+here.%22+Location%3d%22Bottom%22+Alignment%3d%22Center%22+AutoResponseEmail%3d%22False%22+NotificationEmail%3d%22False%22+PageForwarding%3d%22False%22+PageForwardingCustomPage%3d%22False%22+PageForwardingIsExternalURL%3d%22False%22+PageForwardingExternalURL%3d%22None%22%3e%0d%0a++++%3cControls%3e%0d%0a++++++%3cPageControl+Enabled%3d%22false%22+Type%3d%22Calculate%22+Order%3d%220%22+CellLink%3d%22DEFAULT%22+Name%3d%22Calculate%22+%2f%3e%0d%0a++++++%3cPageControl+Enabled%3d%22false%22+Type%3d%22Reset%22+Order%3d%221%22+CellLink%3d%22DEFAULT%22+Name%3d%22Reset%22+%2f%3e%0d%0a++++++%3cPageControl+Enabled%3d%22false%22+Type%3d%22Send+Results%22+Order%3d%222%22+CellLink%3d%22DEFAULT%22+Name%3d%22Submit%22+%2f%3e%0d%0a++++++%3cPageControl+Enabled%3d%22false%22+Type%3d%22Save%22+Order%3d%223%22+CellLink%3d%22DEFAULT%22+Name%3d%22Save%22+%2f%3e%0d%0a++++++%3cPageControl+Enabled%3d%22false%22+Type%3d%22Back%22+Order%3d%225%22+CellLink%3d%22DEFAULT%22+Name%3d%22Back%22+%2f%3e%0d%0a++++++%3cPageControl+Enabled%3d%22false%22+Type%3d%22Next%22+Order%3d%224%22+CellLink%3d%22DEFAULT%22+Name%3d%22Next%22+%2f%3e%0d%0a++++%3c%2fControls%3e%0d%0a++%3c%2fPageLayout%3e%0d%0a++%3cApplicationName%3eHR_Dashboard%3c%2fApplicationName%3e%0d%0a%3c%2fPageLayouts%3e
A4: .Class45{font-family: Verdana; font-size:14pt; color:#376091;font-weight: bold;border: 0.5pt None Black ;background-color:White; text-align:center;vertical-align:middle;} .Class46{font-family: Calibri; font-size:11pt; color:Black;border: 0.5pt None Black ;background-color:White; text-align:left;vertical-align:bottom;} .Class47{font-family: Calibri; font-size:11pt; color:Black;border: 0.5pt None Black ;background-color:White; text-align:left;vertical-align:middle;} .Class48{font-family: Calibri; font-size:11pt; color:#EEECE1;font-weight: bold;border-bottom-style: Solid ;border-width: 0.5pt ;border-top-color: Black ;border-left-color: Black ;border-right-color: Black ;border-bottom-color: #376091 ;background-color:#376091; text-align:left;vertical-align:middle;} .Class49{font-family: Calibri; font-size:11pt; color:#EEECE1;font-weight: bold;border-bottom-style: Solid ;border-width: 0.5pt ;border-top-color: Black ;border-left-color: Black ;border-right-color: Black ;border-bottom-color: #376091 ;background-color:#376091; text-align:right;vertical-align:middle;} .Class50{font-family: Calibri; font-size:11pt; color:Black;border-top-style: Solid ;border-bottom-style: Solid ;border-width: 0.5pt ;border-top-color: #376091 ;border-left-color: Black ;border-right-color: Black ;border-bottom-color: #376091 ;background-color:#B8CCE4; text-align:left;vertical-align:middle;} .Class51{font-family: Calibri; font-size:11pt; color:Black;border-top-style: Solid ;border-bottom-style: Solid ;border-width: 0.5pt ;border-top-color: #376091 ;border-left-color: Black ;border-right-color: Black ;border-bottom-color: #376091 ;background-color:White; text-align:right;vertical-align:middle;} .Class52{font-family: Calibri; font-size:11pt; color:Black;border-top-style: Solid ;border-width: 0.5pt ;border-top-color: #376091 ;border-left-color: Black ;border-right-color: Black ;border-bottom-color: Black ;background-color:White; text-align:left;vertical-align:bottom;}
A5: tr-TR
A6: 2.0.0.0
A7: Type:System.Runtime.InteropServices.COMException Message:Yazdığınız formülde bir hata var. • Sık rastlanan formül sorunlarının giderilmesi hakkında bilgi için Yardım'ı tıklatın. • İşlev girerken yardım almak için İşlev Sihirbazı'nı tıklatın (Formüller sekmesi, İşlev Kitaplığı grubu). • Bir formül girmeye çalışmıyorsanız, eşittir işareti (=) ya da eksi işareti (-) kullanmayın veya tek tırnak işaretiyle (') başlatın. StackTrace: at System.RuntimeType.ForwardCallToInvokeMember(String memberName, BindingFlags flags, Object target, Int32[] aWrapperTypes, MessageData& msgData) at Microsoft.Office.Interop.Excel.Names.Add(Object Name, Object RefersTo, Object Visible, Object MacroType, Object ShortcutKey, Object Category, Object NameLocal, Object RefersToLocal, Object CategoryLocal, Object RefersToR1C1, Object RefersToR1C1Local) at Pagos.SpreadsheetWEB.Wizard.Helpers.ExcelHelper.AddName(String Name, String FormulaA1)Type:System.Runtime.InteropServices.COMException Message:Yazdığınız formülde bir hata var. • Sık rastlanan formül sorunlarının giderilmesi hakkında bilgi için Yardım'ı tıklatın. • İşlev girerken yardım almak için İşlev Sihirbazı'nı tıklatın (Formüller sekmesi, İşlev Kitaplığı grubu). • Bir formül girmeye çalışmıyorsanız, eşittir işareti (=) ya da eksi işareti (-) kullanmayın veya tek tırnak işaretiyle (') başlatın. StackTrace: at System.RuntimeType.ForwardCallToInvokeMember(String memberName, BindingFlags flags, Object target, Int32[] aWrapperTypes, MessageData& msgData) at Microsoft.Office.Interop.Excel.Names.Add(Object Name, Object RefersTo, Object Visible, Object MacroType, Object ShortcutKey, Object Category, Object NameLocal, Object RefersToLocal, Object CategoryLocal, Object RefersToR1C1, Object RefersToR1C1Local) at Pagos.SpreadsheetWEB.Wizard.Helpers.ExcelHelper.AddName(String Name, String FormulaA1)Type:System.Runtime.InteropServices.COMException Message:Yazdığınız formülde bir hata var. • Sık rastlanan formül sorunlarının giderilmesi hakkında bilgi için Yardım'ı tıklatın. • İşlev girerken yardım almak için İşlev Sihirbazı'nı tıklatın (Formüller sekmesi, İşlev Kitaplığı grubu). • Bir formül girmeye çalışmıyorsanız, eşittir işareti (=) ya da eksi işareti (-) kullanmayın veya tek tırnak işaretiyle (') başlatın. StackTrace: at System.RuntimeType.ForwardCallToInvokeMember(String memberName, BindingFlags flags, Object target, Int32[] aWrapperTypes, MessageData& msgData) at Microsoft.Office.Interop.Excel.Names.Add(Object Name, Object RefersTo, Object Visible, Object MacroType, Object ShortcutKey, Object Category, Object NameLocal, Object RefersToLocal, Object CategoryLocal, Object RefersToR1C1, Object RefersToR1C1Local) at Pagos.SpreadsheetWEB.Wizard.Helpers.ExcelHelper.AddName(String Name, String FormulaA1)Type:System.Runtime.InteropServices.COMException Message:Yazdığınız formülde bir hata var. • Sık rastlanan formül sorunlarının giderilmesi hakkında bilgi için Yardım'ı tıklatın. • İşlev girerken yardım almak için İşlev Sihirbazı'nı tıklatın (Formüller sekmesi, İşlev Kitaplığı grubu). • Bir formül girmeye çalışmıyorsanız, eşittir işareti (=) ya da eksi işareti (-) kullanmayın veya tek tırnak işaretiyle (') başlatın. StackTrace: at System.RuntimeType.ForwardCallToInvokeMember(String memberName, BindingFlags flags, Object target, Int32[] aWrapperTypes, MessageData& msgData) at Microsoft.Office.Interop.Excel.Names.Add(Object Name, Object RefersTo, Object Visible, Object MacroType, Object ShortcutKey, Object Category, Object NameLocal, Object RefersToLocal, Object CategoryLocal, Object RefersToR1C1, Object RefersToR1C1Local) at Pagos.SpreadsheetWEB.Wizard.Helpers.ExcelHelper.AddName(String Name, String FormulaA1)Type:System.Runtime.InteropServices.COMException Message:Yazdığınız formülde bir hata var. • Sık rastlanan formül sorunlarının giderilmesi hakkında bilgi için Yardım'ı tıklatın. • İşlev girerken yardım almak için İşlev Sihirbazı'nı tıklatın (Formüller sekmesi, İşlev Kitaplığı grubu). • Bir formül girmeye çalışmıyorsanız, eşittir işareti (=) ya da eksi işareti (-) kullanmayın veya tek tırnak işaretiyle (') başlatın. StackTrace: at System.RuntimeType.ForwardCallToInvokeMember(String memberName, BindingFlags flags, Object target, Int32[] aWrapperTypes, MessageData& msgData) at Microsoft.Office.Interop.Excel.Names.Add(Object Name, Object RefersTo, Object Visible, Object MacroType, Object ShortcutKey, Object Category, Object NameLocal, Object RefersToLocal, Object CategoryLocal, Object RefersToR1C1, Object RefersToR1C1Local) at Pagos.SpreadsheetWEB.Wizard.Helpers.ExcelHelper.AddName(String Name, String FormulaA1)Type:System.Runtime.InteropServices.COMException Message:Yazdığınız formülde bir hata var. • Sık rastlanan formül sorunlarının giderilmesi hakkında bilgi için Yardım'ı tıklatın. • İşlev girerken yardım almak için İşlev Sihirbazı'nı tıklatın (Formüller sekmesi, İşlev Kitaplığı grubu). • Bir formül girmeye çalışmıyorsanız, eşittir işareti (=) ya da eksi işareti (-) kullanmayın veya tek tırnak işaretiyle (') başlatın. StackTrace: at System.RuntimeType.ForwardCallToInvokeMember(String memberName, BindingFlags flags, Object target, Int32[] aWrapperTypes, MessageData& msgData) at Microsoft.Office.Interop.Excel.Names.Add(Object Name, Object RefersTo, Object Visible, Object MacroType, Object ShortcutKey, Object Category, Object NameLocal, Object RefersToLocal, Object CategoryLocal, Object RefersToR1C1, Object RefersToR1C1Local) at Pagos.SpreadsheetWEB.Wizard.Helpers.ExcelHelper.AddName(String Name, String FormulaA1)Type:System.Runtime.InteropServices.COMException Message:Yazdığınız formülde bir hata var. • Sık rastlanan formül sorunlarının giderilmesi hakkında bilgi için Yardım'ı tıklatın. • İşlev girerken yardım almak için İşlev Sihirbazı'nı tıklatın (Formüller sekmesi, İşlev Kitaplığı grubu). • Bir formül girmeye çalışmıyorsanız, eşittir işareti (=) ya da eksi işareti (-) kullanmayın veya tek tırnak işaretiyle (') başlatın. StackTrace: at System.RuntimeType.ForwardCallToInvokeMember(String memberName, BindingFlags flags, Object target, Int32[] aWrapperTypes, MessageData& msgData) at Microsoft.Office.Interop.Excel.Names.Add(Object Name, Object RefersTo, Object Visible, Object MacroType, Object ShortcutKey, Object Category, Object NameLocal, Object RefersToLocal, Object CategoryLocal, Object RefersToR1C1, Object RefersToR1C1Local) at Pagos.SpreadsheetWEB.Wizard.Helpers.ExcelHelper.AddName(String Name, String FormulaA1)Type:System.Runtime.InteropServices.COMException Message:Yazdığınız formülde bir hata var. • Sık rastlanan formül sorunlarının giderilmesi hakkında bilgi için Yardım'ı tıklatın. • İşlev girerken yardım almak için İşlev Sihirbazı'nı tıklatın (Formüller sekmesi, İşlev Kitaplığı grubu). • Bir formül girmeye çalışmıyorsanız, eşittir işareti (=) ya da eksi işareti (-) kullanmayın veya tek tırnak işaretiyle (') başlatın. StackTrace: at System.RuntimeType.ForwardCallToInvokeMember(String memberName, BindingFlags flags, Object target, Int32[] aWrapperTypes, MessageData& msgData) at Microsoft.Office.Interop.Excel.Names.Add(Object Name, Object RefersTo, Object Visible, Object MacroType, Object ShortcutKey, Object Category, Object NameLocal, Object RefersToLocal, Object CategoryLocal, Object RefersToR1C1, Object RefersToR1C1Local) at Pagos.SpreadsheetWEB.Wizard.Helpers.ExcelHelper.AddName(String Name, String FormulaA1)Type:System.Runtime.InteropServices.COMException Message:Yazdığınız formülde bir hata var. • Sık rastlanan formül sorunlarının giderilmesi hakkında bilgi için Yardım'ı tıklatın. • İşlev girerken yardım almak için İşlev Sihirbazı'nı tıklatın (Formüller sekmesi, İşlev Kitaplığı grubu). • Bir formül girmeye çalışmıyorsanız, eşittir işareti (=) ya da eksi işareti (-) kullanmayın veya tek tırnak işaretiyle (') başlatın. StackTrace: at System.RuntimeType.ForwardCallToInvokeMember(String memberName, BindingFlags flags, Object target, Int32[] aWrapperTypes, MessageData& msgData) at Microsoft.Office.Interop.Excel.Names.Add(Object Name, Object RefersTo, Object Visible, Object MacroType, Object ShortcutKey, Object Category, Object NameLocal, Object RefersToLocal, Object CategoryLocal, Object RefersToR1C1, Object RefersToR1C1Local) at Pagos.SpreadsheetWEB.Wizard.Helpers.ExcelHelper.AddName(String Name, String FormulaA1)Type:System.Runtime.InteropServices.COMException Message:Yazdığınız formülde bir hata var. • Sık rastlanan formül sorunlarının giderilmesi hakkında bilgi için Yardım'ı tıklatın. • İşlev girerken yardım almak için İşlev Sihirbazı'nı tıklatın (Formüller sekmesi, İşlev Kitaplığı grubu). • Bir formül girmeye çalışmıyorsanız, eşittir işareti (=) ya da eksi işareti (-) kullanmayın veya tek tırnak işaretiyle (') başlatın. StackTrace: at System.RuntimeType.ForwardCallToInvokeMember(String memberName, BindingFlags flags, Object target, Int32[] aWrapperTypes, MessageData& msgData) at Microsoft.Office.Interop.Excel.Names.Add(Object Name, Object RefersTo, Object Visible, Object MacroType, Object ShortcutKey, Object Category, Object NameLocal, Object RefersToLocal, Object CategoryLocal, Object RefersToR1C1, Object RefersToR1C1Local) at Pagos.SpreadsheetWEB.Wizard.Helpers.ExcelHelper.AddName(String Name, String FormulaA1)
A8: UEsFBgAAAAAAAAAAAAAAAAAAAAAAAA%3d%3d
A11: %3c%3fxml+version%3d%221.0%22+encoding%3d%22utf-16%22%3f%3e%0d%0a%3cSavingCells+xmlns%3axsi%3d%22http%3a%2f%2fwww.w3.org%2f2001%2fXMLSchema-instance%22+xmlns%3axsd%3d%22http%3a%2f%2fwww.w3.org%2f2001%2fXMLSchema%22+CellCount%3d%220%22+SavingCellPrefix%3d%22PSWSavingCell_%22+%2f%3e
